bitfinex/quotes_BTCUSD_20251102
["timestamp","ask_amount","ask_price","bid_price","bid_amount"]
[1762086680916,0.01714491,111170.0,111160.0,0.28276788]
[1762086681139,0.01714491,111170.0,111160.0,0.28249661]
[1762086681378,0.01714491,111170.0,111160.0,0.30952939]
[1762086682044,0.00414491,111170.0,111160.0,0.30552939]
[1762086682260,0.00614491,111170.0,111160.0,0.30752939]
[1762086682505,0.00714491,111170.0,111160.0,0.30852939]
[1762086682760,0.03303491,111170.0,111160.0,0.28499939]
[1762086682986,0.03303491,111170.0,111160.0,0.30852939]
[1762086682987,0.00714491,111170.0,111160.0,0.30852939]
[1762086689313,0.05726491,111170.0,111160.0,0.26903939]
[1762086689522,0.03867416,111170.0,111160.0,0.28460939]
[1762086690293,0.03867416,111170.0,111160.0,0.30936939]
[1762086695420,0.05553327,111170.0,111160.0,0.30936939]
[1762086697764,0.23543792,111170.0,111160.0,0.30936939]
[1762086698012,0.05553327,111170.0,111160.0,0.30936939]
[1762086704457,0.05553327,111170.0,111160.0,0.28460939]
[1762086705234,0.05553327,111170.0,111160.0,0.30936939]
[1762086708382,0.05553327,111170.0,111160.0,0.28460939]
[1762086708699,0.05553327,111170.0,111160.0,0.30936939]
[1762086710033,0.25949792,111170.0,111160.0,0.07687856]
[1762086710438,0.27895557,111170.0,111160.0,0.09244856]
[1762086710614,0.25489557,111170.0,111160.0,0.10452856]
[1762086712106,0.27895557,111170.0,111160.0,0.004]
[1762086712322,0.65513785,111170.0,111160.0,0.004]
[1762086712528,0.67942139,111170.0,111160.0,0.004]
[1762086712733,0.71176529,111170.0,111160.0,0.004]
[1762086713416,0.17995321,111140.0,111130.0,0.22824389]
[1762086713619,0.19528321,111140.0,111130.0,0.29490939]
[1762086714242,0.01533,111140.0,111130.0,0.29490939]
[1762086714856,0.01533,111140.0,111130.0,0.32066939]
[1762086714857,0.19828321,111140.0,111130.0,0.32066939]
[1762086715495,0.19828321,111140.0,111130.0,0.32466939]
[1762086715496,0.20728321,111140.0,111130.0,0.32466939]
[1762086716164,0.21818321,111140.0,111130.0,0.32466939]
[1762086717677,0.24299321,111140.0,111130.0,0.28433939]
[1762086718275,0.24299321,111140.0,111130.0,0.27209939]
[1762086718473,0.24299321,111140.0,111130.0,0.08313164]
[1762086718895,0.24299321,111140.0,111130.0,0.005]
[1762086720045,0.24299321,111140.0,111130.0,0.1849694]
[1762086720253,0.06304,111140.0,111130.0,0.1849694]
[1762086731382,0.24299321,111140.0,111130.0,0.1849694]
[1762086732047,0.24299321,111140.0,111130.0,0.005]
[1762086732358,0.27917549,111140.0,111130.0,0.005]
[1762086732572,0.64145366,111140.0,111130.0,0.005]
[1762086732935,0.66085197,111140.0,111130.0,0.005]
[1762086733303,0.65185197,111140.0,111130.0,0.001]
[1762086733509,0.1799694,111130.0,111120.0,0.02988821]
[1762086733712,0.2314694,111130.0,111120.0,0.02988821]
[1762086734700,0.2314694,111130.0,111120.0,0.20987381]
[1762086734913,0.2314694,111130.0,111120.0,0.02988821]
[1762086735828,0.2434694,111130.0,111120.0,0.03488821]
[1762086737260,0.24890987,111130.0,111120.0,0.03488821]
[1762086737486,0.26574831,111130.0,111120.0,0.03488821]
[1762086738520,0.60574831,111130.0,111120.0,0.03488821]
[1762086738983,0.64193059,111130.0,111120.0,0.03488821]
[1762086739430,0.66132864,111130.0,111120.0,0.03488821]
[1762086740161,0.74897518,111130.0,111120.0,0.03488821]
[1762086741770,0.77325872,111130.0,111120.0,0.03488821]
[1762086742900,0.77326508,111130.0,111120.0,0.03488821]
[1762086743358,0.76526508,111130.0,111120.0,0.03088821]
[1762086743586,0.77626508,111130.0,111120.0,0.03488821]
[1762086744765,0.77226508,111130.0,111120.0,0.03388821]
[1762086744997,0.76826508,111130.0,111120.0,0.03088821]
[1762086745305,0.78226508,111130.0,111120.0,0.03588821]
[1762086745729,0.81460898,111130.0,111120.0,0.03588821]
[1762086747508,0.72696244,111130.0,111120.0,0.03588821]
[1762086754226,0.69461854,111130.0,111120.0,0.03588821]
[1762086754460,0.72696244,111130.0,111120.0,0.03588821]
[1762086754662,0.69461854,111130.0,111120.0,0.03588821]
[1762086755365,0.72696244,111130.0,111120.0,0.03588821]
[1762086755701,0.81678145,111130.0,111120.0,0.03588821]
[1762086756230,0.81675891,111130.0,111120.0,0.03588821]
[1762086760373,0.816726,111130.0,111120.0,0.03588821]
[1762086760881,0.79247537,111130.0,111120.0,0.03588821]
[1762086762383,0.84087638,111130.0,111120.0,0.03588821]
[1762086766476,0.72879464,111130.0,111120.0,0.03588821]
[1762086766697,0.70267481,111130.0,111120.0,0.03588821]
[1762086767039,0.51081511,111130.0,111120.0,0.21587381]
[1762086767125,0.51465349,111130.0,111120.0,0.21587381]
[1762086767348,0.54699739,111130.0,111120.0,0.21587381]
[1762086767569,0.50065349,111130.0,111120.0,0.21087381]
[1762086767792,0.49765349,111130.0,111120.0,0.21387381]
[1762086768018,0.46147121,111130.0,111120.0,0.21387381]
[1762086768243,0.46247121,111130.0,111120.0,0.21487381]
[1762086768457,0.44955151,111130.0,111120.0,0.24166381]
[1762086768910,0.47211151,111130.0,111120.0,0.24166381]
[1762086769673,0.65208091,111130.0,111120.0,0.03488821]
[1762086770347,0.67637289,111130.0,111120.0,0.03488821]
[1762086772125,0.7661919,111130.0,111120.0,0.03488821]
[1762086773075,0.67637289,111130.0,111120.0,0.03488821]
[1762086775572,0.70871679,111130.0,111120.0,0.03488821]
[1762086775782,0.68442481,111130.0,111120.0,0.03488821]
[1762086776899,0.68442864,111130.0,111120.0,0.03488821]
[1762086777129,0.70872634,111130.0,111120.0,0.03488821]
[1762086779387,0.79854535,111130.0,111120.0,0.03488821]
[1762086780792,0.76620145,111130.0,111120.0,0.03488821]
[1762086781014,0.79854535,111130.0,111120.0,0.03488821]
[1762086782443,0.76620145,111130.0,111120.0,0.03488821]
[1762086783532,0.79854535,111130.0,111120.0,0.03488821]
[1762086785166,0.70872634,111130.0,111120.0,0.03488821]
[1762086785385,0.7087297,111130.0,111120.0,0.03488821]
[1762086791662,0.6763858,111130.0,111120.0,0.03488821]
[1762086791800,0.6763858,111130.0,111120.0,0.06193722]
[1762086792978,0.6763858,111130.0,111120.0,0.24192282]
[1762086794541,0.6520881,111130.0,111120.0,0.24192282]
[1762086795494,0.6520881,111130.0,111120.0,0.28763228]
[1762086797131,0.6520881,111130.0,111120.0,0.28779228]
[1762086797404,0.4721187,111130.0,111120.0,0.30406228]
[1762086797625,0.41337642,111130.0,111120.0,0.31533228]
[1762086797845,0.41337642,111130.0,111120.0,0.34016228]
[1762086798273,0.07337642,111130.0,111120.0,0.34016228]
[1762086798477,0.05397837,111130.0,111120.0,0.34016228]
[1762086799346,0.03169,111130.0,111120.0,0.34016228]
[1762086800390,0.005,111130.0,111120.0,0.34016228]
[1762086802434,0.1849694,111130.0,111120.0,0.34016228]
[1762086802653,0.005,111130.0,111120.0,0.34016228]
[1762086803226,0.1849694,111130.0,111120.0,0.34016228]
[1762086804241,0.005,111130.0,111120.0,0.34016228]
[1762086804720,0.1849694,111130.0,111120.0,0.34016228]
[1762086805458,0.2347394,111130.0,111120.0,0.10780668]
[1762086806969,0.65246402,111130.0,111120.0,0.06209722]
[1762086808331,0.63034355,111130.0,111120.0,0.06209722]
[1762086808767,0.64720405,111130.0,111120.0,0.06209722]
[1762086809017,0.63034355,111130.0,111120.0,0.06209722]
[1762086809243,0.65464125,111130.0,111120.0,0.06209722]
[1762086809697,0.67676286,111130.0,111120.0,0.06209722]
[1762086809907,0.67676291,111130.0,111120.0,0.06209722]
[1762086810126,0.67676297,111130.0,111120.0,0.06209722]
[1762086812450,0.67676258,111130.0,111120.0,0.06209722]
[1762086813829,0.76658159,111130.0,111120.0,0.06209722]
[1762086814614,0.67676258,111130.0,111120.0,0.06209722]
[1762086821236,0.67676258,111130.0,111120.0,0.03504821]
[1762086821656,0.70910648,111130.0,111120.0,0.03504821]
[1762086822733,0.71251057,111130.0,111120.0,0.03504821]
[1762086822937,0.70082781,111130.0,111120.0,0.03504821]
[1762086823141,0.79064682,111130.0,111120.0,0.03504821]
[1762086823617,0.82200348,111130.0,111120.0,0.03404821]
[1762086823794,0.82300348,111130.0,111120.0,0.03104821]
[1762086824003,0.83600348,111130.0,111120.0,0.03504821]
[1762086826612,0.86374335,111130.0,111120.0,0.03504821]
[1762086832414,0.84138668,111130.0,111120.0,0.03504821]
[1762086832822,0.82452645,111130.0,111120.0,0.03504821]
[1762086833040,0.84136761,111130.0,111120.0,0.03504821]
[1762086833616,0.8513676,111130.0,111120.0,0.03504821]
[1762086834670,0.80296659,111130.0,111120.0,0.03504821]
[1762086835789,0.7929666,111130.0,111120.0,0.03504821]
[1762086836006,0.80296659,111130.0,111120.0,0.03504821]
[1762086836747,1.06750704,111130.0,111120.0,1e-08]
[1762086837157,1.09456503,111130.0,111120.0,1e-08]
[1762086839506,0.180018,111100.0,111090.0,0.0272761]
[1762086839683,0.26420193,111100.0,111090.0,0.02736299]
[1762086839985,0.29568155,111100.0,111090.0,0.02736299]
[1762086840414,0.30464657,111100.0,111090.0,0.02736299]
[1762086840629,0.28037907,111100.0,111090.0,0.02736299]
[1762086841080,0.28737907,111100.0,111090.0,0.03336299]
[1762086842672,0.34086605,111100.0,111090.0,0.03336299]
[1762086846296,0.36513355,111100.0,111090.0,0.03336299]
[1762086846686,0.31165324,111100.0,111090.0,0.03336299]
[1762086846904,0.28738574,111100.0,111090.0,0.03336299]
[1762086847265,0.31165324,111100.0,111090.0,0.03336299]
[1762086848647,0.31165052,111100.0,111090.0,0.03336299]
[1762086849132,0.31165052,111100.0,111090.0,0.006305]
[1762086850007,0.36513789,111100.0,111090.0,0.006305]
[1762086850352,0.31165052,111100.0,111090.0,0.006305]
[1762086853912,0.65155696,111100.0,111090.0,0.006305]
[1762086854139,1.01929683,111100.0,111090.0,0.006305]
[1762086854354,0.98694017,111100.0,111090.0,0.006305]
[1762086854586,0.98094017,111100.0,111090.0,0.002305]
[1762086854805,1.07075918,111100.0,111090.0,0.002305]
[1762086854995,1.08475918,111100.0,111090.0,0.007305]
[1762086855219,1.08375918,111100.0,111090.0,0.005305]
[1762086855642,1.08875918,111100.0,111090.0,0.006305]
[1762086856772,1.07191135,111100.0,111090.0,0.006305]
[1762086856994,1.08876426,111100.0,111090.0,0.006305]
[1762086859168,0.18005041,111080.0,111070.0,0.00048]
[1762086859374,0.27502924,111080.0,111070.0,0.00061036]
[1762086859586,0.29565481,111080.0,111070.0,0.00061036]
[1762086860366,0.29965481,111080.0,111070.0,0.00561036]
[1762086861587,0.30065481,111080.0,111070.0,0.00661036]
[1762086864088,0.55628133,111050.0,111040.0,0.00071806]
[1762086864308,0.55628133,111050.0,111040.0,0.02826937]
[1762086864309,0.60003448,111050.0,111040.0,0.02826937]
[1762086864525,0.62475448,111050.0,111040.0,0.02826937]
[1762086864748,0.64414615,111050.0,111040.0,0.02826937]
[1762086864966,0.64414615,111050.0,111040.0,0.04910936]
[1762086865202,0.64514615,111050.0,111040.0,0.03126937]
[1762086865413,0.64514615,111050.0,111040.0,0.00529237]
[1762086865883,0.65033709,111050.0,111040.0,0.00529237]
[1762086866809,0.65533709,111050.0,111040.0,0.00529237]
[1762086867262,0.65014615,111050.0,111040.0,0.00529237]
[1762086872904,0.63075448,111050.0,111040.0,0.00529237]
[1762086873336,0.63075448,111050.0,111040.0,0.18540764]
[1762086876002,0.63075448,111050.0,111040.0,0.00529237]
[1762086876677,0.63075448,111050.0,111040.0,0.18540764]
[1762086881355,0.47000811,111050.0,111040.0,0.18540764]
[1762086881559,0.63075448,111050.0,111040.0,0.21247491]
[1762086881946,0.65010717,111050.0,111040.0,0.21247491]
[1762086882535,0.47000812,111050.0,111040.0,0.21247491]
[1762086882743,0.47000812,111050.0,111040.0,0.2551435]
[1762086883173,0.65010717,111050.0,111040.0,0.21247491]
[1762086883906,0.65010717,111050.0,111040.0,0.03235964]
[1762086884150,0.65010717,111050.0,111040.0,0.21247491]
[1762086884383,0.65529514,111050.0,111040.0,0.21247491]
[1762086884611,0.65529514,111050.0,111040.0,0.03235964]
[1762086885063,0.65529514,111050.0,111040.0,0.21247491]
[1762086886536,0.47519609,111050.0,111040.0,0.21247491]
[1762086886747,0.65529514,111050.0,111040.0,0.21247491]
[1762086887589,0.65529862,111050.0,111040.0,0.21247491]
[1762086887786,0.65529862,111050.0,111040.0,0.03235964]
[1762086890115,0.69578408,111050.0,111040.0,0.00529237]
[1762086890321,0.72812985,111050.0,111040.0,0.00529237]
[1762086891177,0.72212985,111050.0,111040.0,0.00229237]
[1762086891413,0.73612985,111050.0,111040.0,0.00229237]
[1762086891638,0.76086972,111050.0,111040.0,0.00229237]
[1762086892116,0.75486972,111050.0,111040.0,0.00229237]
[1762086892350,0.76986972,111050.0,111040.0,0.00229237]
[1762086892816,0.79414831,111050.0,111040.0,0.00229237]
[1762086893464,0.76180254,111050.0,111040.0,0.00229237]
[1762086894156,0.75017672,111050.0,111040.0,0.00229237]
[1762086894356,0.70164172,111050.0,111040.0,0.00229237]
[1762086894563,0.72590695,111050.0,111040.0,0.00229237]
[1762086901908,0.72590695,111050.0,111040.0,0.18240764]
[1762086902114,0.72590695,111050.0,111040.0,0.00229237]
[1762086906958,0.81572596,111050.0,111040.0,0.00229237]
[1762086909330,0.72590695,111050.0,111040.0,0.00229237]
[1762086909759,0.72590695,111050.0,111040.0,0.02936208]
[1762086910639,0.69355656,111050.0,111040.0,0.02936208]
[1762086912207,0.72590695,111050.0,111040.0,0.02936208]
[1762086913955,0.72590695,111050.0,111040.0,0.00229237]
[1762086914168,0.83538521,111050.0,111040.0,0.00229237]
[1762086916359,0.86772725,111050.0,111040.0,0.00229237]
[1762086916776,0.83538521,111050.0,111040.0,0.00229237]
[1762086916979,0.86772725,111050.0,111040.0,0.00229237]
[1762086917190,0.86772504,111050.0,111040.0,0.00229237]
[1762086917400,0.83538521,111050.0,111040.0,0.00229237]
[1762086918306,0.86772815,111050.0,111040.0,0.00229237]
[1762086918754,0.83538521,111050.0,111040.0,0.00229237]
[1762086921134,0.75016733,111050.0,111040.0,0.00229237]
[1762086921798,0.7178299,111050.0,111040.0,0.00229237]
[1762086922241,0.74556977,111050.0,111040.0,0.00229237]
[1762086924581,0.75556976,111050.0,111040.0,0.00229237]
[1762086925043,0.74556977,111050.0,111040.0,0.00229237]
[1762086925250,0.74841928,111050.0,111040.0,0.00229237]
[1762086925456,0.77075408,111050.0,111040.0,0.00229237]
[1762086925878,0.75016469,111050.0,111040.0,0.00229237]
[1762086926124,0.71398241,111050.0,111040.0,0.00229237]
[1762086926335,0.75016469,111050.0,111040.0,0.00229237]
[1762086926777,0.75016376,111050.0,111040.0,0.00229237]
[1762086928999,0.70162876,111050.0,111040.0,0.00229237]
[1762086929207,0.83998277,111050.0,111040.0,0.00229237]
[1762086929834,0.75016376,111050.0,111040.0,0.00229237]
[1762086941348,0.71782897,111050.0,111040.0,0.00229237]
[1762086943936,0.74556884,111050.0,111040.0,0.00229237]
[1762086945657,0.75556883,111050.0,111040.0,0.00229237]
[1762086947401,0.71782897,111050.0,111040.0,0.00229237]
[1762086950215,0.75020143,111050.0,111040.0,0.00229237]
[1762086952328,0.71782897,111050.0,111040.0,0.00229237]
[1762086952950,0.74556884,111050.0,111040.0,0.00229237]
[1762086955461,0.71782897,111050.0,111040.0,0.00229237]
[1762086959407,0.75019923,111050.0,111040.0,0.00229237]
[1762086961478,0.75019923,111050.0,111040.0,0.18240764]
[1762086961699,0.72594205,111050.0,111040.0,0.00229237]
[1762086961944,0.72594205,111050.0,111040.0,0.02936181]
[1762086962382,0.72074656,111050.0,111040.0,0.20947708]
[1762086962605,0.72594699,111050.0,111040.0,0.20947708]
[1762086963085,0.72594699,111050.0,111040.0,0.02936181]
[1762086963312,0.72594699,111050.0,111040.0,0.20947708]
[1762086963552,0.72594699,111050.0,111040.0,0.02936181]
[1762086974345,0.72940904,111050.0,111040.0,0.02936181]
[1762086975004,0.70166917,111050.0,111040.0,0.02936181]
[1762086977741,0.75557377,111050.0,111040.0,0.00229237]
[1762086978371,0.95557377,111050.0,111040.0,0.00229237]
[1762086981249,0.9278339,111050.0,111040.0,0.00229237]
[1762086982251,0.93122782,111050.0,111040.0,0.00229237]
[1762086982489,0.7601266,111050.0,111040.0,0.00229237]
[1762086983667,0.75012661,111050.0,111040.0,0.00229237]
[1762086983833,1.0072266,111050.0,111040.0,0.00229237]
[1762086986514,0.99038214,111050.0,111040.0,0.00229237]
[1762086986718,1.09701429,111050.0,111040.0,0.00229237]
[1762086987296,1.09701429,111050.0,111020.0,0.0004]
[1762086987297,1.19191429,111050.0,111020.0,0.0004]
[1762086987507,1.19191429,111050.0,111000.0,1.12851]
[1762086987508,0.56634621,111010.0,111000.0,1.12851]
[1762086987720,0.68012661,111010.0,111000.0,1.12865491]
[1762086987934,0.853852,111010.0,111000.0,1.12865491]
[1762086988147,0.82158106,111010.0,111000.0,1.07865491]
[1762086988359,0.85381297,111010.0,111000.0,1.07865491]
[1762086988995,0.76399396,111010.0,111000.0,1.07865491]
[1762086989429,0.7043009,111010.0,111000.0,1.07865491]
[1762086989645,0.67206899,111010.0,111000.0,1.07865491]
[1762086990304,0.67806899,111010.0,111000.0,1.07865491]
[1762086990920,0.69606899,111010.0,111000.0,1.07865491]
[1762086991340,0.78071556,111010.0,111000.0,1.07865491]
[1762086991931,0.75656106,111010.0,111000.0,1.07865491]
[1762086993125,0.75656106,111010.0,111000.0,1.07952832]
[1762086994409,0.82132915,111010.0,111000.0,1.07952832]
[1762086994622,1.02132915,111010.0,111000.0,0.64863342]
[1762086996831,1.02125439,111010.0,111000.0,0.64863342]
[1762086998484,1.26835439,111010.0,111000.0,0.64863342]
[1762087001890,1.24435439,111010.0,111000.0,0.64863342]
[1762087002365,1.25235439,111010.0,111000.0,0.64863342]
[1762087002581,1.02174079,111010.0,111000.0,0.64863342]
[1762087002798,0.92192179,111010.0,111000.0,0.64863342]
[1762087003017,0.89776729,111010.0,111000.0,0.64863342]
[1762087003232,0.94392179,111010.0,111000.0,0.64863342]
[1762087004615,0.9761537,111010.0,111000.0,0.64863342]
[1762087006362,0.9519992,111010.0,111000.0,0.64863342]
[1762087006568,1.12083822,111010.0,111000.0,0.64863342]
[1762087012340,1.08860631,111010.0,111000.0,0.64863342]
[1762087013222,1.0986063,111010.0,111000.0,0.64863342]
[1762087014357,1.08236855,111010.0,111000.0,0.23553962]
[1762087014827,1.10945559,111010.0,111000.0,0.23553962]
[1762087015498,1.157862,111010.0,111000.0,0.23553962]
[1762087015997,1.10945559,111010.0,111000.0,0.23553962]
[1762087016236,1.157862,111010.0,111000.0,0.23553962]
[1762087016454,1.12569334,111010.0,111000.0,0.23553962]
[1762087017140,0.9681737,111010.0,111000.0,0.23553962]
[1762087017568,0.9987873,111010.0,111000.0,0.23553962]
[1762087019726,1.00878729,111010.0,111000.0,0.23553962]
[1762087019937,0.9987873,111010.0,111000.0,0.23553962]
[1762087020163,0.9681737,111010.0,111000.0,0.23553962]
[1762087020379,1.05799271,111010.0,111000.0,0.23553962]
[1762087020608,0.7210737,111010.0,111000.0,0.23553962]
[1762087020838,0.31047134,111010.0,111000.0,0.23553962]
[1762087021110,0.30240956,111010.0,111000.0,0.23553962]
[1762087021329,0.64240956,111010.0,111000.0,0.23553962]
[1762087021574,0.64240956,111010.0,111000.0,0.26261989]
[1762087021796,0.65659184,111010.0,111000.0,0.26261989]
[1762087022067,0.753153,111010.0,111000.0,0.26261989]
[1762087022289,0.43430562,111010.0,111000.0,0.44280007]
[1762087022517,0.43430562,111010.0,111000.0,0.47143007]
[1762087022518,0.41610309,111010.0,111000.0,0.47143007]
[1762087022751,0.45228537,111010.0,111000.0,0.49632007]
[1762087022983,0.40527309,111010.0,111000.0,0.49632007]
[1762087023426,0.04209107,111010.0,111000.0,0.49632007]
[1762087023677,0.05292066,111010.0,111000.0,0.56523771]
[1762087023894,0.05592066,111010.0,111000.0,0.56523771]
[1762087024806,0.07392066,111010.0,111000.0,0.56823771]
[1762087026219,0.05718228,111010.0,111000.0,0.56823771]
[1762087027966,0.021,111010.0,111000.0,0.56823771]
[1762087028181,0.021,111010.0,111000.0,0.56799771]
[1762087028804,0.003,111010.0,111000.0,0.56499771]
[1762087029034,0.013,111010.0,111000.0,0.56999771]
[1762087029654,0.01,111010.0,111000.0,0.56999771]
[1762087030278,0.012,111010.0,111000.0,0.57199771]
[1762087032393,0.012,111010.0,111000.0,0.39181753]
[1762087032605,0.012,111010.0,111000.0,0.32289989]
[1762087032870,0.012,111010.0,111000.0,0.50308007]
[1762087036314,0.19216394,111010.0,111000.0,0.50308007]
[1762087044145,0.19216394,111010.0,111000.0,0.32289989]
[1762087044359,0.19216394,111010.0,111000.0,0.50308007]
[1762087044572,0.19216394,111010.0,111000.0,0.57267369]
[1762087046277,0.012,111010.0,111000.0,0.57267369]
[1762087046539,0.19216394,111010.0,111000.0,0.57267369]
[1762087047137,0.012,111010.0,111000.0,0.57267369]
[1762087047348,0.19216394,111010.0,111000.0,0.57267369]
[1762087049090,0.012,111010.0,111000.0,0.57267369]
[1762087049526,0.012,111010.0,111000.0,0.54778369]
[1762087049527,0.04818228,111010.0,111000.0,0.54778369]
[1762087049741,0.04818228,111010.0,111000.0,0.57110369]
[1762087050398,0.22834622,111010.0,111000.0,0.57110369]
[1762087050639,0.22834622,111010.0,111000.0,0.26937989]
[1762087050869,0.2645069,111010.0,111000.0,0.24229962]
[1762087051347,0.6045069,111010.0,111000.0,0.24229962]
[1762087052214,0.5945069,111010.0,111000.0,0.23729962]
[1762087052429,0.5945069,111010.0,111000.0,0.26623962]
[1762087052637,0.6135069,111010.0,111000.0,0.4484198]
[1762087052876,0.6175069,111010.0,111000.0,0.4494198]
[1762087053099,0.6175069,111010.0,111000.0,0.26923962]
[1762087053343,0.6175069,111010.0,111000.0,0.24029962]
[1762087053582,0.73220875,111010.0,111000.0,0.24029962]
[1762087053774,0.64680532,111010.0,111000.0,0.24029962]
[1762087059267,0.64977121,111010.0,111000.0,0.24029962]
[1762087059452,0.69817762,111010.0,111000.0,0.24029962]
[1762087060128,0.92047253,111010.0,111000.0,0.24029962]
[1762087060344,0.92037646,111010.0,111000.0,0.24029962]
[1762087060566,1.01019547,111010.0,111000.0,0.24029962]
[1762087060778,1.01019547,111010.0,111000.0,0.23629962]
[1762087060991,0.98919547,111010.0,111000.0,0.23629962]
[1762087061197,0.95988513,111010.0,111000.0,0.23629962]
[1762087061411,1.01817256,111010.0,111000.0,0.23629962]
[1762087061875,0.94002283,111010.0,111000.0,0.23529962]
[1762087062090,0.99631168,111010.0,111000.0,0.23529962]
[1762087064896,0.96761475,111010.0,111000.0,0.23529962]
[1762087065084,0.98977945,111010.0,111000.0,0.23529962]
[1762087067694,0.9414906,111010.0,111000.0,0.23529962]
[1762087068137,0.65167159,111010.0,111000.0,0.23529962]
[1762087068386,0.67578711,111010.0,111000.0,0.23529962]
[1762087069672,0.64362242,111010.0,111000.0,0.23529962]
[1762087072047,0.64878928,111010.0,111000.0,0.23529962]
[1762087072766,0.64362242,111010.0,111000.0,0.23529962]
[1762087072989,0.73344143,111010.0,111000.0,0.23529962]
[1762087074561,0.7414906,111010.0,111000.0,0.23529962]
[1762087075006,0.81847638,111010.0,111000.0,0.23529962]
[1762087075752,0.78977945,111010.0,111000.0,0.23529962]
[1762087075956,0.81847638,111010.0,111000.0,0.23529962]
[1762087076183,0.78977945,111010.0,111000.0,0.23529962]
[1762087076390,0.77297672,111010.0,111000.0,0.23529962]
[1762087076593,0.78973563,111010.0,111000.0,0.23529962]
[1762087077408,0.75757094,111010.0,111000.0,0.23529962]
[1762087077835,0.95757094,111010.0,111000.0,0.23529962]
[1762087079305,0.81346245,111000.0,110990.0,0.0004]
[1762087079524,1.19572827,111000.0,110990.0,0.00044807]
[1762087079926,1.17158685,111000.0,110990.0,0.00044807]
[1762087080556,1.20258685,111000.0,110990.0,0.00044807]
[1762087080961,0.99258686,111000.0,110990.0,0.00044807]
[1762087081190,1.01673786,111000.0,110990.0,0.00044807]
[1762087081812,0.98454933,111000.0,110990.0,0.00044807]
[1762087083338,1.01673786,111000.0,110990.0,0.00044807]
[1762087083816,0.98454933,111000.0,110990.0,0.00044807]
[1762087084461,1.01673786,111000.0,110990.0,0.00044807]
[1762087084890,1.01673786,111000.0,110990.0,0.00066648]
[1762087085522,0.99258686,111000.0,110990.0,0.00066648]
[1762087086194,1.01674479,111000.0,110990.0,0.00066648]
[1762087086604,0.99258686,111000.0,110990.0,0.00066648]
[1762087088155,0.74548686,111000.0,110990.0,0.00066648]
[1762087089333,0.76158718,111000.0,110990.0,0.00066648]
[1762087093365,0.73958718,111000.0,110990.0,0.00066648]
[1762087093572,0.62471668,111000.0,110990.0,0.00066648]
[1762087093802,0.6548964,111000.0,110990.0,0.00066648]
[1762087094005,0.6698964,111000.0,110990.0,0.00066648]
[1762087094210,0.6698964,111000.0,110990.0,0.18086289]
[1762087094611,0.67507394,111000.0,110990.0,0.23373234]
[1762087094792,0.67507394,111000.0,110990.0,0.19649289]
[1762087095261,0.4626564,111000.0,110990.0,0.19649289]
[1762087095464,0.42647412,111000.0,110990.0,0.20781289]
[1762087095585,0.4626564,111000.0,110990.0,0.23110289]
[1762087095992,0.4626564,111000.0,110990.0,0.27607446]
[1762087096194,0.43329914,111000.0,110990.0,0.27607446]
[1762087096801,0.43329914,111000.0,110990.0,0.23110289]
[1762087098076,0.61347932,111000.0,110990.0,0.23110289]
[1762087098510,0.61347932,111000.0,110990.0,0.20781289]
[1762087100451,0.43329914,111000.0,110990.0,0.20781289]
[1762087100678,0.43329914,111000.0,110990.0,0.23110289]
[1762087101397,0.43329914,111000.0,110990.0,0.27607446]
[1762087101657,0.41829914,111000.0,110990.0,0.27607446]
[1762087102133,0.39018228,111000.0,110990.0,0.27607446]
[1762087102592,0.348,111000.0,110990.0,0.30315397]
[1762087103081,0.35,111000.0,110990.0,0.30415397]
[1762087104680,0.01,111000.0,110990.0,0.30415397]
[1762087109925,0.01,111000.0,110990.0,0.28086397]
[1762087110356,0.01,111000.0,110990.0,0.30458397]
[1762087110525,0.19018018,111000.0,110990.0,0.30458397]
[1762087111150,0.19018018,111000.0,110990.0,0.28086397]
[1762087111403,0.01,111000.0,110990.0,0.28086397]
[1762087111768,0.01,111000.0,110990.0,0.30458397]
[1762087113418,0.19018018,111000.0,110990.0,0.30458397]
[1762087114011,0.19018018,111000.0,110990.0,0.28086397]
[1762087114270,0.19018018,111000.0,110990.0,0.30458397]
[1762087115480,0.01,111000.0,110990.0,0.30458397]
[1762087120116,0.002,111000.0,110990.0,0.30458397]
[1762087120330,0.37618228,111030.0,111020.0,0.18014772]
[1762087120541,0.37618228,111030.0,111020.0,0.19533772]
[1762087120542,0.39295027,111030.0,111020.0,0.19533772]
[1762087120769,0.39295027,111030.0,111020.0,0.23136741]
[1762087120973,0.39295027,111030.0,111020.0,0.25844018]
[1762087121152,0.39295043,111030.0,111020.0,0.25844018]
[1762087121363,0.39295067,111030.0,111020.0,0.25844018]
[1762087121562,0.39295061,111030.0,111020.0,0.25844018]
[1762087121905,0.39795067,111030.0,111020.0,0.27096018]
[1762087122383,0.39795067,111030.0,111020.0,0.25865049]
[1762087122726,0.41495067,111030.0,111020.0,0.26165049]
[1762087123230,0.41495067,111030.0,111020.0,0.21122049]
[1762087123432,0.59508216,111030.0,111020.0,0.21122049]
[1762087123571,0.41495067,111030.0,111020.0,0.21122049]
[1762087124446,0.41495067,111030.0,111020.0,0.23793049]
[1762087125909,0.59508699,111030.0,111020.0,0.23793049]
[1762087126084,0.59508699,111030.0,111020.0,0.05778277]
[1762087126298,0.59508699,111030.0,111020.0,0.23793049]
[1762087126497,0.59508699,111030.0,111020.0,0.03107277]
[1762087126698,0.61440905,111030.0,111020.0,0.03107277]
[1762087127286,0.69643978,111030.0,111020.0,0.03107277]
[1762087127489,0.61440905,111030.0,111020.0,0.004]
[1762087128491,0.64376331,111030.0,111020.0,0.004]
[1762087128903,0.67245694,111030.0,111020.0,0.004]
[1762087130959,0.67245694,111030.0,111020.0,0.00335]
[1762087131937,0.79451331,111030.0,111020.0,0.00335]
[1762087132149,0.78638508,111030.0,111020.0,0.00335]
[1762087132793,0.78138508,111030.0,111020.0,0.003]
[1762087133235,0.79138508,111030.0,111020.0,0.004]
[1762087133647,0.77438508,111030.0,111020.0,0.001]
[1762087135664,0.79338508,111030.0,111020.0,0.001]
[1762087136268,0.76469145,111030.0,111020.0,0.001]
[1762087136449,0.79690901,111030.0,111020.0,0.001]
[1762087137235,0.70709,111030.0,111020.0,0.001]
[1762087139208,0.73578363,111030.0,111020.0,0.001]
[1762087139414,0.70709,111030.0,111020.0,0.001]
[1762087139996,0.73578363,111030.0,111020.0,0.001]
[1762087140452,0.70709,111030.0,111020.0,0.001]
[1762087140827,0.73578363,111030.0,111020.0,0.001]
[1762087141234,0.70709,111030.0,111020.0,0.001]
[1762087141852,0.79690901,111030.0,111020.0,0.001]
[1762087142059,0.70709,111030.0,111020.0,0.001]
[1762087142617,0.65880115,111030.0,111020.0,0.001]
[1762087142842,0.6829521,111030.0,111020.0,0.001]
[1762087143830,0.65073454,111030.0,111020.0,0.001]
[1762087144815,0.21633,111020.0,111010.0,0.19157374]
[1762087145014,0.21633,111020.0,111010.0,0.03429]
[1762087145015,0.25242528,111020.0,111010.0,0.03429]
[1762087145220,0.25242528,111020.0,111010.0,0.05287657]